[Event "Titled Tuesday Blitz June 20 Early 2023"]
[White "KorolDimitriy75"]
[Black "Clawitter, Craig"]
[BlackFideId "2023105"]
[WhiteElo "2409"]
[BlackElo "2232"]
[Result "1/2-1/2"]
[Round "8"]
[TimeControl "180+2"]
[Date "2023.06.20"]
[WhiteClock "0:00:12"]
[BlackClock "0:00:09"]
[Board "153"]

1. d4 {[%clk 0:02:43]}  e6 {[%clk 0:03:00]} 2. c4 {[%clk 0:02:43]}  Nf6 {[%clk 0:03:00]} 3. Nc3 {[%clk 0:02:43]}  d5 {[%clk 0:03:00]} 4. Bg5 {[%clk 0:02:43]}  dxc4 {[%clk 0:03:00]} 5. e4 {[%clk 0:02:43]}  b5 {[%clk 0:02:55]} 6. Nxb5 {[%clk 0:02:36]}  c5 {[%clk 0:02:54]} 7. Nf3 {[%clk 0:01:38]}  Qa5+ {[%clk 0:02:45]} 8. Nc3 {[%clk 0:01:31]}  Nxe4 {[%clk 0:02:45]} 9. Bd2 {[%clk 0:00:19]}  Nxd2 {[%clk 0:02:36]} 10. Qxd2 {[%clk 0:00:20]}  Nc6 {[%clk 0:01:56]} 11. Bxc4 {[%clk 0:00:19]}  cxd4 {[%clk 0:01:23]} 12. Nxd4 {[%clk 0:00:19]}  Bb7 {[%clk 0:01:02]} 13. O-O {[%clk 0:00:16]}  Rd8 {[%clk 0:00:49]} 14. Nxc6 {[%clk 0:00:16]}  Bxc6 {[%clk 0:00:47]} 15. Qf4 {[%clk 0:00:16]}  Bd6 {[%clk 0:00:38]} 16. Qg4 {[%clk 0:00:16]}  O-O {[%clk 0:00:25]} 17. Rad1 {[%clk 0:00:16]}  Qe5 {[%clk 0:00:14]} 18. Qh3 {[%clk 0:00:14]}  g6 {[%clk 0:00:12]} 19. Bb3 {[%clk 0:00:12]}  Bc7 {[%clk 0:00:12]} 20. Rfe1 {[%clk 0:00:11]}  Rxd1 {[%clk 0:00:11]} 21. Rxd1 {[%clk 0:00:12]}  Rd8 {[%clk 0:00:10]} 22. Rxd8+ {[%clk 0:00:11]}  Bxd8 {[%clk 0:00:11]} 23. Qe3 {[%clk 0:00:11]}  Qxe3 {[%clk 0:00:11]} 24. fxe3 {[%clk 0:00:12]}  Bb6 {[%clk 0:00:11]} 25. Kf2 {[%clk 0:00:12]}  Kg7 {[%clk 0:00:12]} 26. g3 {[%clk 0:00:12]}  Kf6 {[%clk 0:00:13]} 27. Ke2 {[%clk 0:00:12]}  Ke5 {[%clk 0:00:13]} 28. Bc2 {[%clk 0:00:12]}  f5 {[%clk 0:00:13]} 29. Bd3 {[%clk 0:00:12]}  Kf6 {[%clk 0:00:12]} 30. b4 {[%clk 0:00:12]}  e5 {[%clk 0:00:12]} 31. a4 {[%clk 0:00:11]}  a5 {[%clk 0:00:11]} 32. bxa5 {[%clk 0:00:09]}  Bxa5 {[%clk 0:00:11]} 33. Bb5 {[%clk 0:00:07]}  Bxc3 {[%clk 0:00:09]} 34. Bxc6 {[%clk 0:00:07]}  Ke6 {[%clk 0:00:08]} 35. Be8 {[%clk 0:00:06]}  Kf6 {[%clk 0:00:08]} 36. Bd7 {[%clk 0:00:06]}  Ke7 {[%clk 0:00:07]} 37. Bc6 {[%clk 0:00:06]}  Kd6 {[%clk 0:00:08]} 38. Be8 {[%clk 0:00:06]}  Kc5 {[%clk 0:00:06]} 39. Bf7 {[%clk 0:00:06]}  Kd6 {[%clk 0:00:05]} 40. Bg8 {[%clk 0:00:06]}  h6 {[%clk 0:00:04]} 41. Bf7 {[%clk 0:00:06]}  g5 {[%clk 0:00:04]} 42. Be8 {[%clk 0:00:06]}  f4 {[%clk 0:00:04]} 43. exf4 {[%clk 0:00:06]}  exf4 {[%clk 0:00:04]} 44. gxf4 {[%clk 0:00:07]}  gxf4 {[%clk 0:00:05]} 45. Kf3 {[%clk 0:00:07]}  Ke5 {[%clk 0:00:05]} 46. h3 {[%clk 0:00:07]}  Bd2 {[%clk 0:00:05]} 47. Bb5 {[%clk 0:00:08]}  Bc1 {[%clk 0:00:05]} 48. Bc6 {[%clk 0:00:08]}  Bd2 {[%clk 0:00:05]} 49. Bb5 {[%clk 0:00:09]}  Ba5 {[%clk 0:00:05]} 50. Bc6 {[%clk 0:00:09]}  Bc7 {[%clk 0:00:06]} 51. Bb5 {[%clk 0:00:10]}  Kf6 {[%clk 0:00:06]} 52. Bc6 {[%clk 0:00:10]}  Kg5 {[%clk 0:00:07]} 53. Bd7 {[%clk 0:00:10]}  Kh4 {[%clk 0:00:07]} 54. Bc8 {[%clk 0:00:10]}  Kg5 {[%clk 0:00:07]} 55. Bd7 {[%clk 0:00:11]}  Kf6 {[%clk 0:00:08]} 56. Bc8 {[%clk 0:00:11]}  Ke7 {[%clk 0:00:08]} 57. Bf5 {[%clk 0:00:11]}  Kf6 {[%clk 0:00:09]} 58. Bd7 {[%clk 0:00:11]}  Ke7 {[%clk 0:00:09]} 59. Bc8 {[%clk 0:00:12]}  Kf6 {[%clk 0:00:08]} 60. Bd7 {[%clk 0:00:12]}  Ke7 {[%clk 0:00:08]} 61. Bc8 {[%clk 0:00:12]}  Kf6 {[%clk 0:00:09]} 62. Bd7 {[%clk 0:00:12]} 1/2-1/2


[Site "https://www.chess.com"]

[Event "Titled Tuesday Blitz June 20 Early 2023"]
[White "Ramirez Vido, Robert Yorisan"]
[Black "Thiel, Thomas"]
[WhiteFideId "3513823"]
[BlackFideId "4615964"]
[WhiteElo "2395"]
[BlackElo "2230"]
[Result "1-0"]
[Round "8"]
[TimeControl "180+2"]
[Date "2023.06.20"]
[WhiteClock "0:00:15"]
[BlackClock "0:00:00"]
[Board "155"]

1. e4 {[%clk 0:03:00]}  d5 {[%clk 0:02:59]} 2. Nf3 {[%clk 0:02:55]}  dxe4 {[%clk 0:02:57]} 3. Ng5 {[%clk 0:02:54]}  Nf6 {[%clk 0:02:57]} 4. Bc4 {[%clk 0:02:53]}  e6 {[%clk 0:02:52]} 5. Nc3 {[%clk 0:02:52]}  Nc6 {[%clk 0:02:47]} 6. Ngxe4 {[%clk 0:02:43]}  Nxe4 {[%clk 0:02:44]} 7. Nxe4 {[%clk 0:02:43]}  Be7 {[%clk 0:02:21]} 8. O-O {[%clk 0:02:42]}  O-O {[%clk 0:02:18]} 9. c3 {[%clk 0:02:37]}  b6 {[%clk 0:02:17]} 10. d4 {[%clk 0:02:31]}  Bb7 {[%clk 0:02:16]} 11. Bd3 {[%clk 0:02:31]}  e5 {[%clk 0:02:14]} 12. d5 {[%clk 0:02:25]}  Nb8 {[%clk 0:02:03]} 13. c4 {[%clk 0:01:38]}  f5 {[%clk 0:02:02]} 14. Nc3 {[%clk 0:01:33]}  Nd7 {[%clk 0:02:01]} 15. Bd2 {[%clk 0:01:13]}  Bd6 {[%clk 0:01:56]} 16. Nb5 {[%clk 0:01:12]}  e4 {[%clk 0:01:55]} 17. Nxd6 {[%clk 0:01:11]}  cxd6 {[%clk 0:01:53]} 18. Bc2 {[%clk 0:01:07]}  Ne5 {[%clk 0:01:51]} 19. b3 {[%clk 0:01:00]}  b5 {[%clk 0:01:51]} 20. Bc3 {[%clk 0:00:59]}  bxc4 {[%clk 0:01:48]} 21. Bxe5 {[%clk 0:00:58]}  dxe5 {[%clk 0:01:49]} 22. bxc4 {[%clk 0:00:58]}  Qd6 {[%clk 0:01:46]} 23. Bb3 {[%clk 0:00:56]}  a5 {[%clk 0:01:40]} 24. Rc1 {[%clk 0:00:54]}  Qc5 {[%clk 0:01:37]} 25. Qd2 {[%clk 0:00:49]}  a4 {[%clk 0:01:35]} 26. Bd1 {[%clk 0:00:47]}  a3 {[%clk 0:01:22]} 27. Bb3 {[%clk 0:00:44]}  Rfc8 {[%clk 0:01:15]} 28. Qg5 {[%clk 0:00:43]}  Rf8 {[%clk 0:01:08]} 29. Rfd1 {[%clk 0:00:41]}  f4 {[%clk 0:01:06]} 30. Qxe5 {[%clk 0:00:39]}  Rae8 {[%clk 0:01:01]} 31. Qd4 {[%clk 0:00:39]}  Qxd4 {[%clk 0:00:44]} 32. Rxd4 {[%clk 0:00:40]}  e3 {[%clk 0:00:44]} 33. fxe3 {[%clk 0:00:39]}  fxe3 {[%clk 0:00:41]} 34. c5 {[%clk 0:00:29]}  e2 {[%clk 0:00:36]} 35. d6+ {[%clk 0:00:26]}  Kh8 {[%clk 0:00:33]} 36. Re1 {[%clk 0:00:26]}  Ba6 {[%clk 0:00:32]} 37. Bc4 {[%clk 0:00:27]}  Bxc4 {[%clk 0:00:22]} 38. Rxc4 {[%clk 0:00:28]}  Re6 {[%clk 0:00:15]} 39. d7 {[%clk 0:00:17]}  Ref6 {[%clk 0:00:13]} 40. Rcc1 {[%clk 0:00:17]}  R6f7 {[%clk 0:00:00]} 41. c6 {[%clk 0:00:15]} 1-0


[Site "https://www.chess.com"]

[Event "Titled Tuesday Blitz June 20 Early 2023"]
[White "Ovezdurdyyeva, Jemal"]
[Black "Gardezi, Arsal"]
[WhiteFideId "14001888"]
[BlackFideId "30949521"]
[WhiteElo "2069"]
[BlackElo "1906"]
[Result "1-0"]
[Round "8"]
[TimeControl "180+2"]
[Date "2023.06.20"]
[WhiteClock "0:00:15"]
[BlackClock "0:00:24"]
[Board "157"]

1. e4 {[%clk 0:03:00]}  e6 {[%clk 0:02:56]} 2. d4 {[%clk 0:03:00]}  d5 {[%clk 0:02:57]} 3. Nd2 {[%clk 0:02:59]}  Nc6 {[%clk 0:02:57]} 4. Ngf3 {[%clk 0:02:55]}  Nf6 {[%clk 0:02:53]} 5. e5 {[%clk 0:02:50]}  Nd7 {[%clk 0:02:53]} 6. Be2 {[%clk 0:02:46]}  f6 {[%clk 0:02:53]} 7. exf6 {[%clk 0:02:37]}  Nxf6 {[%clk 0:02:52]} 8. O-O {[%clk 0:02:38]}  Bd6 {[%clk 0:02:52]} 9. c4 {[%clk 0:02:37]}  O-O {[%clk 0:02:52]} 10. c5 {[%clk 0:02:28]}  Bf4 {[%clk 0:02:44]} 11. Nb3 {[%clk 0:02:14]}  Bxc1 {[%clk 0:02:39]} 12. Qxc1 {[%clk 0:02:14]}  Ne4 {[%clk 0:02:39]} 13. Qe3 {[%clk 0:02:10]}  Qf6 {[%clk 0:02:33]} 14. Bd3 {[%clk 0:02:09]}  Qf4 {[%clk 0:02:29]} 15. Rfe1 {[%clk 0:02:03]}  Qxe3 {[%clk 0:02:22]} 16. Rxe3 {[%clk 0:02:03]}  Nf6 {[%clk 0:02:18]} 17. Ng5 {[%clk 0:02:01]}  e5 {[%clk 0:01:59]} 18. dxe5 {[%clk 0:01:59]}  Ng4 {[%clk 0:01:59]} 19. Bxh7+ {[%clk 0:01:58]}  Kh8 {[%clk 0:01:59]} 20. Re2 {[%clk 0:01:33]}  Ngxe5 {[%clk 0:01:51]} 21. Bc2 {[%clk 0:01:27]}  d4 {[%clk 0:01:40]} 22. Rd1 {[%clk 0:01:25]}  Bf5 {[%clk 0:01:40]} 23. Nxd4 {[%clk 0:01:19]}  Bxc2 {[%clk 0:01:33]} 24. Nxc2 {[%clk 0:01:13]}  Rad8 {[%clk 0:01:29]} 25. Rde1 {[%clk 0:01:12]}  Rf5 {[%clk 0:01:26]} 26. Ne6 {[%clk 0:01:08]}  Rd7 {[%clk 0:01:23]} 27. f3 {[%clk 0:00:58]}  Nd3 {[%clk 0:01:23]} 28. Rd1 {[%clk 0:00:56]}  Nxc5 {[%clk 0:01:22]} 29. Rxd7 {[%clk 0:00:53]}  Nxd7 {[%clk 0:01:22]} 30. Nxc7 {[%clk 0:00:54]}  Nde5 {[%clk 0:01:18]} 31. Nb5 {[%clk 0:00:44]}  Rf6 {[%clk 0:01:08]} 32. Ne3 {[%clk 0:00:34]}  Rg6 {[%clk 0:01:05]} 33. Kf2 {[%clk 0:00:33]}  a6 {[%clk 0:01:05]} 34. Nc3 {[%clk 0:00:32]}  Nd3+ {[%clk 0:01:02]} 35. Kf1 {[%clk 0:00:30]}  Nf4 {[%clk 0:00:58]} 36. Rd2 {[%clk 0:00:30]}  Re6 {[%clk 0:00:58]} 37. Ng4 {[%clk 0:00:29]}  Nb4 {[%clk 0:00:53]} 38. Ne4 {[%clk 0:00:28]}  Rc6 {[%clk 0:00:40]} 39. a3 {[%clk 0:00:21]}  Nbd3 {[%clk 0:00:40]} 40. Nc3 {[%clk 0:00:16]}  Re6 {[%clk 0:00:39]} 41. Ne2 {[%clk 0:00:14]}  Rc6 {[%clk 0:00:31]} 42. Nxf4 {[%clk 0:00:12]}  Rc1+ {[%clk 0:00:29]} 43. Ke2 {[%clk 0:00:13]}  Nxf4+ {[%clk 0:00:29]} 44. Ke3 {[%clk 0:00:13]}  Ne6 {[%clk 0:00:28]} 45. Rd7 {[%clk 0:00:12]}  Kh7 {[%clk 0:00:27]} 46. Rxb7 {[%clk 0:00:12]}  Rc2 {[%clk 0:00:25]} 47. Nf6+ {[%clk 0:00:11]}  Kg6 {[%clk 0:00:25]} 48. Nd5 {[%clk 0:00:12]}  Rxg2 {[%clk 0:00:25]} 49. Nc7 {[%clk 0:00:11]}  Nc5 {[%clk 0:00:24]} 50. Rb6+ {[%clk 0:00:11]}  Kf5 {[%clk 0:00:24]} 51. Nd5 {[%clk 0:00:12]}  Nd7 {[%clk 0:00:24]} 52. Rxa6 {[%clk 0:00:11]}  Ne5 {[%clk 0:00:23]} 53. Ne7+ {[%clk 0:00:12]}  Kg5 {[%clk 0:00:22]} 54. f4+ {[%clk 0:00:12]}  Kg4 {[%clk 0:00:22]} 55. fxe5 {[%clk 0:00:13]}  Rxb2 {[%clk 0:00:22]} 56. Nd5 {[%clk 0:00:12]}  Kf5 {[%clk 0:00:22]} 57. e6 {[%clk 0:00:12]}  Rb1 {[%clk 0:00:22]} 58. e7 {[%clk 0:00:13]}  Ke5 {[%clk 0:00:23]} 59. e8=Q+ {[%clk 0:00:13]}  Kxd5 {[%clk 0:00:23]} 60. Qf7+ {[%clk 0:00:13]}  Ke5 {[%clk 0:00:23]} 61. Qxg7+ {[%clk 0:00:14]}  Kf5 {[%clk 0:00:24]} 62. Qh7+ {[%clk 0:00:15]}  Kg5 {[%clk 0:00:24]} 63. Qxb1 {[%clk 0:00:15]} 1-0


[Site "https://www.chess.com"]

[Event "Titled Tuesday Blitz June 20 Early 2023"]
[White "Cardozo Munar, Carlos Eduardo"]
[Black "Kev4444444444"]
[WhiteFideId "4409477"]
[WhiteElo "2067"]
[BlackElo "2179"]
[Result "1-0"]
[Round "8"]
[TimeControl "180+2"]
[Date "2023.06.20"]
[WhiteClock "0:00:16"]
[BlackClock "0:00:21"]
[Board "158"]

1. d4 {[%clk 0:02:11]}  g6 {[%clk 0:02:54]} 2. Nf3 {[%clk 0:02:08]}  Bg7 {[%clk 0:02:53]} 3. Bg5 {[%clk 0:02:03]}  Nf6 {[%clk 0:02:49]} 4. Nbd2 {[%clk 0:02:02]}  d5 {[%clk 0:02:48]} 5. e3 {[%clk 0:02:02]}  O-O {[%clk 0:02:47]} 6. Bd3 {[%clk 0:02:02]}  c5 {[%clk 0:02:47]} 7. c3 {[%clk 0:02:02]}  Nc6 {[%clk 0:02:44]} 8. dxc5 {[%clk 0:02:01]}  h6 {[%clk 0:02:38]} 9. Bh4 {[%clk 0:02:01]}  a5 {[%clk 0:02:26]} 10. O-O {[%clk 0:01:54]}  Nd7 {[%clk 0:02:17]} 11. e4 {[%clk 0:01:54]}  Nxc5 {[%clk 0:02:16]} 12. Bc2 {[%clk 0:01:53]}  d4 {[%clk 0:02:10]} 13. cxd4 {[%clk 0:01:41]}  Nxd4 {[%clk 0:02:10]} 14. Nxd4 {[%clk 0:01:41]}  Bxd4 {[%clk 0:02:09]} 15. Nf3 {[%clk 0:01:38]}  Bxb2 {[%clk 0:02:03]} 16. Qxd8 {[%clk 0:01:38]}  Rxd8 {[%clk 0:02:03]} 17. Bxe7 {[%clk 0:01:37]}  Bxa1 {[%clk 0:01:58]} 18. Bxd8 {[%clk 0:01:36]}  Bc3 {[%clk 0:01:53]} 19. Bb6 {[%clk 0:01:33]}  Ne6 {[%clk 0:01:22]} 20. Rd1 {[%clk 0:01:27]}  Ra6 {[%clk 0:01:22]} 21. Be3 {[%clk 0:01:21]}  g5 {[%clk 0:01:13]} 22. Bb3 {[%clk 0:01:21]}  Bf6 {[%clk 0:01:05]} 23. h3 {[%clk 0:01:17]}  Rc6 {[%clk 0:01:02]} 24. Bd5 {[%clk 0:01:04]}  Rc2 {[%clk 0:00:59]} 25. Rc1 {[%clk 0:01:04]}  Rxc1+ {[%clk 0:00:57]} 26. Bxc1 {[%clk 0:01:05]}  Nc7 {[%clk 0:00:57]} 27. Bb3 {[%clk 0:00:38]}  b5 {[%clk 0:00:57]} 28. Be3 {[%clk 0:00:33]}  a4 {[%clk 0:00:57]} 29. Bc2 {[%clk 0:00:32]}  Be6 {[%clk 0:00:57]} 30. Bb1 {[%clk 0:00:27]}  Na6 {[%clk 0:00:57]} 31. Nd4 {[%clk 0:00:25]}  Bc4 {[%clk 0:00:55]} 32. Nf5 {[%clk 0:00:25]}  Kh7 {[%clk 0:00:41]} 33. Nd6 {[%clk 0:00:21]}  Kg7 {[%clk 0:00:34]} 34. Ne8+ {[%clk 0:00:17]}  Kf8 {[%clk 0:00:21]} 35. Nxf6 {[%clk 0:00:18]}  Nb4 {[%clk 0:00:21]} 36. Bc5+ {[%clk 0:00:16]} 1-0


[Site "https://www.chess.com"]

[Event "Titled Tuesday Blitz June 20 Early 2023"]
[White "Vaglio Munoz, Jaime"]
[Black "Nikulina, Alena"]
[WhiteFideId "6500145"]
[BlackFideId "4172051"]
[WhiteElo "2199"]
[BlackElo "1608"]
[Result "1-0"]
[Round "8"]
[TimeControl "180+2"]
[Date "2023.06.20"]
[WhiteClock "0:00:59"]
[BlackClock "0:00:16"]
[Board "159"]

1. e4 {[%clk 0:03:00]}  e5 {[%clk 0:02:57]} 2. Nc3 {[%clk 0:02:58]}  Nc6 {[%clk 0:02:55]} 3. Bc4 {[%clk 0:02:58]}  Nf6 {[%clk 0:02:49]} 4. d3 {[%clk 0:02:58]}  Bc5 {[%clk 0:02:47]} 5. Bg5 {[%clk 0:02:54]}  h6 {[%clk 0:02:46]} 6. Bh4 {[%clk 0:02:54]}  d6 {[%clk 0:02:40]} 7. h3 {[%clk 0:02:52]}  g5 {[%clk 0:02:39]} 8. Bg3 {[%clk 0:02:52]}  Qe7 {[%clk 0:02:20]} 9. a3 {[%clk 0:02:50]}  Be6 {[%clk 0:02:19]} 10. b4 {[%clk 0:02:49]}  Bd4 {[%clk 0:02:16]} 11. Nge2 {[%clk 0:02:46]}  O-O-O {[%clk 0:02:11]} 12. Bb5 {[%clk 0:02:41]}  Bxc3+ {[%clk 0:02:03]} 13. Nxc3 {[%clk 0:02:39]}  Nd4 {[%clk 0:02:03]} 14. Ba4 {[%clk 0:02:28]}  h5 {[%clk 0:01:54]} 15. h4 {[%clk 0:02:26]}  g4 {[%clk 0:01:51]} 16. Ne2 {[%clk 0:02:24]}  Nc6 {[%clk 0:01:26]} 17. c4 {[%clk 0:02:20]}  Nd7 {[%clk 0:01:22]} 18. b5 {[%clk 0:02:07]}  Nd4 {[%clk 0:01:17]} 19. Nxd4 {[%clk 0:01:37]}  exd4 {[%clk 0:01:16]} 20. O-O {[%clk 0:01:36]}  f5 {[%clk 0:01:08]} 21. exf5 {[%clk 0:01:33]}  Bxf5 {[%clk 0:01:08]} 22. Re1 {[%clk 0:01:34]}  Qh7 {[%clk 0:00:55]} 23. Bc2 {[%clk 0:01:33]}  Nc5 {[%clk 0:00:55]} 24. a4 {[%clk 0:01:17]}  Nxd3 {[%clk 0:00:40]} 25. Bxd3 {[%clk 0:01:12]}  Bxd3 {[%clk 0:00:39]} 26. Rc1 {[%clk 0:01:09]}  Bf5 {[%clk 0:00:35]} 27. Qxd4 {[%clk 0:01:08]}  Rhe8 {[%clk 0:00:33]} 28. Qxa7 {[%clk 0:01:07]}  Be4 {[%clk 0:00:24]} 29. c5 {[%clk 0:01:01]}  d5 {[%clk 0:00:23]} 30. c6 {[%clk 0:00:59]}  bxc6 {[%clk 0:00:18]} 31. bxc6 {[%clk 0:01:00]}  Rd6 {[%clk 0:00:16]} 32. Qa8# {[%clk 0:00:59]} 1-0


[Site "https://www.chess.com"]

[Event "Titled Tuesday Blitz June 20 Early 2023"]
[White "Semenova, Alina"]
[Black "Martin, Lewis"]
[WhiteFideId "24113875"]
[BlackFideId "410551"]
[WhiteElo "1833"]
[BlackElo "2145"]
[Result "0-1"]
[Round "8"]
[TimeControl "180+2"]
[Date "2023.06.20"]
[WhiteClock "0:00:00"]
[BlackClock "0:00:42"]
[Board "161"]

1. e4 {[%clk 0:03:00]}  c5 {[%clk 0:02:59]} 2. Nf3 {[%clk 0:03:01]}  d6 {[%clk 0:03:00]} 3. d4 {[%clk 0:03:02]}  cxd4 {[%clk 0:03:01]} 4. Nxd4 {[%clk 0:03:02]}  Nf6 {[%clk 0:03:01]} 5. Nc3 {[%clk 0:03:02]}  a6 {[%clk 0:03:02]} 6. f3 {[%clk 0:02:59]}  e5 {[%clk 0:03:01]} 7. Nb3 {[%clk 0:02:57]}  Be6 {[%clk 0:02:59]} 8. Be3 {[%clk 0:02:58]}  Be7 {[%clk 0:02:59]} 9. Qd2 {[%clk 0:02:58]}  O-O {[%clk 0:03:00]} 10. O-O-O {[%clk 0:02:59]}  Nbd7 {[%clk 0:02:53]} 11. g4 {[%clk 0:02:55]}  Nc5 {[%clk 0:02:51]} 12. g5 {[%clk 0:02:47]}  Nh5 {[%clk 0:02:50]} 13. h4 {[%clk 0:02:46]}  b5 {[%clk 0:02:44]} 14. Nd5 {[%clk 0:02:43]}  Bxd5 {[%clk 0:02:38]} 15. exd5 {[%clk 0:02:40]}  Nxb3+ {[%clk 0:02:33]} 16. cxb3 {[%clk 0:02:39]}  Rc8+ {[%clk 0:02:16]} 17. Kb1 {[%clk 0:02:39]}  g6 {[%clk 0:02:16]} 18. Bh3 {[%clk 0:02:35]}  Ra8 {[%clk 0:02:08]} 19. Bg4 {[%clk 0:02:20]}  Ng7 {[%clk 0:02:06]} 20. h5 {[%clk 0:02:08]}  f5 {[%clk 0:01:54]} 21. gxf6 {[%clk 0:02:03]}  Rxf6 {[%clk 0:01:53]} 22. h6 {[%clk 0:01:48]}  Nf5 {[%clk 0:01:50]} 23. Bg5 {[%clk 0:01:49]}  Rf8 {[%clk 0:01:42]} 24. Bxe7 {[%clk 0:01:45]}  Qxe7 {[%clk 0:01:42]} 25. Rhg1 {[%clk 0:01:41]}  Nd4 {[%clk 0:01:40]} 26. Qd3 {[%clk 0:01:20]}  Qf6 {[%clk 0:01:20]} 27. Rdf1 {[%clk 0:01:01]}  Kh8 {[%clk 0:01:09]} 28. f4 {[%clk 0:00:57]}  exf4 {[%clk 0:01:08]} 29. Rf2 {[%clk 0:00:54]}  Rae8 {[%clk 0:01:04]} 30. Rgf1 {[%clk 0:00:48]}  g5 {[%clk 0:01:00]} 31. Rh1 {[%clk 0:00:11]}  Qg6 {[%clk 0:00:49]} 32. Qxg6 {[%clk 0:00:02]}  hxg6 {[%clk 0:00:49]} 33. Kc1 {[%clk 0:00:00]}  Re5 {[%clk 0:00:42]} 0-1


[Site "https://www.chess.com"]

[Event "Titled Tuesday Blitz June 20 Early 2023"]
[White "Vargas Rodriguez, Wilver"]
[Black "Better_Chess_Faster"]
[WhiteFideId "3509672"]
[WhiteElo "2245"]
[BlackElo "2019"]
[Result "1-0"]
[Round "8"]
[TimeControl "180+2"]
[Date "2023.06.20"]
[WhiteClock "0:00:17"]
[BlackClock "0:00:02"]
[Board "168"]

1. Nf3 {[%clk 0:03:00]}  d5 {[%clk 0:02:58]} 2. c4 {[%clk 0:02:58]}  d4 {[%clk 0:02:58]} 3. b4 {[%clk 0:02:58]}  f6 {[%clk 0:02:55]} 4. Bb2 {[%clk 0:02:37]}  e5 {[%clk 0:02:55]} 5. e3 {[%clk 0:02:37]}  Bxb4 {[%clk 0:02:41]} 6. exd4 {[%clk 0:02:35]}  e4 {[%clk 0:02:41]} 7. Ng1 {[%clk 0:02:31]}  Nh6 {[%clk 0:02:35]} 8. Qa4+ {[%clk 0:02:25]}  Nc6 {[%clk 0:02:33]} 9. d5 {[%clk 0:02:25]}  O-O {[%clk 0:02:23]} 10. dxc6 {[%clk 0:02:24]}  Bc5 {[%clk 0:02:16]} 11. cxb7 {[%clk 0:02:16]}  Bxb7 {[%clk 0:02:10]} 12. Qb5 {[%clk 0:02:16]}  Bb6 {[%clk 0:02:02]} 13. c5 {[%clk 0:02:16]}  a6 {[%clk 0:01:47]} 14. Qb3+ {[%clk 0:02:14]}  Bd5 {[%clk 0:01:46]} 15. Bc4 {[%clk 0:02:14]}  c6 {[%clk 0:01:33]} 16. cxb6 {[%clk 0:02:09]}  Rb8 {[%clk 0:01:33]} 17. Bxd5+ {[%clk 0:01:59]}  cxd5 {[%clk 0:01:32]} 18. Bd4 {[%clk 0:01:57]}  Nf5 {[%clk 0:01:31]} 19. Bc5 {[%clk 0:01:56]}  Re8 {[%clk 0:01:30]} 20. Nc3 {[%clk 0:01:54]}  Kh8 {[%clk 0:01:19]} 21. g4 {[%clk 0:01:30]}  Nh4 {[%clk 0:01:04]} 22. Qxd5 {[%clk 0:01:24]}  Qc8 {[%clk 0:00:59]} 23. b7 {[%clk 0:01:00]}  Qxg4 {[%clk 0:00:50]} 24. Nge2 {[%clk 0:00:38]}  Nf3+ {[%clk 0:00:44]} 25. Kd1 {[%clk 0:00:33]}  Qg2 {[%clk 0:00:37]} 26. Kc2 {[%clk 0:00:31]}  Qg6 {[%clk 0:00:19]} 27. Nf4 {[%clk 0:00:29]}  Qh6 {[%clk 0:00:17]} 28. Bd6 {[%clk 0:00:28]}  Rbd8 {[%clk 0:00:13]} 29. b8=Q {[%clk 0:00:25]}  Rxb8 {[%clk 0:00:13]} 30. Bxb8 {[%clk 0:00:25]}  Rxb8 {[%clk 0:00:14]} 31. Rab1 {[%clk 0:00:23]}  Rg8 {[%clk 0:00:07]} 32. Qxe4 {[%clk 0:00:21]}  Ne5 {[%clk 0:00:05]} 33. Rb7 {[%clk 0:00:19]}  Qh4 {[%clk 0:00:03]} 34. Ng6+ {[%clk 0:00:18]}  hxg6 {[%clk 0:00:02]} 35. Qxh4# {[%clk 0:00:17]} 1-0


[Site "https://www.chess.com"]

[Event "Titled Tuesday Blitz June 20 Early 2023"]
[White "Castillo Pena, Patricia Evarista"]
[Black "Winkels, Marcel"]
[WhiteFideId "6412106"]
[BlackFideId "1003887"]
[WhiteElo "1859"]
[BlackElo "1900"]
[Result "0-1"]
[Round "8"]
[TimeControl "180+2"]
[Date "2023.06.20"]
[WhiteClock "0:00:00"]
[BlackClock "0:00:22"]
[Board "170"]

1. d4 {[%clk 0:02:59]}  Nf6 {[%clk 0:02:58]} 2. Nf3 {[%clk 0:02:59]}  g6 {[%clk 0:02:58]} 3. Nc3 {[%clk 0:02:59]}  d5 {[%clk 0:02:57]} 4. Bf4 {[%clk 0:02:58]}  Bg7 {[%clk 0:02:56]} 5. e3 {[%clk 0:02:56]}  c6 {[%clk 0:02:54]} 6. Be2 {[%clk 0:02:54]}  Nbd7 {[%clk 0:02:53]} 7. h4 {[%clk 0:02:54]}  h5 {[%clk 0:02:53]} 8. Ne5 {[%clk 0:02:53]}  Nxe5 {[%clk 0:02:47]} 9. dxe5 {[%clk 0:02:40]}  Nh7 {[%clk 0:02:44]} 10. Qd3 {[%clk 0:02:30]}  Bf5 {[%clk 0:02:40]} 11. Qd2 {[%clk 0:02:30]}  O-O {[%clk 0:02:33]} 12. O-O-O {[%clk 0:02:27]}  b5 {[%clk 0:02:31]} 13. e4 {[%clk 0:02:24]}  dxe4 {[%clk 0:02:30]} 14. Qe3 {[%clk 0:02:17]}  Qa5 {[%clk 0:02:23]} 15. Kb1 {[%clk 0:02:11]}  Be6 {[%clk 0:02:03]} 16. b3 {[%clk 0:01:26]}  b4 {[%clk 0:01:45]} 17. Nxe4 {[%clk 0:01:11]}  Bxe5 {[%clk 0:01:43]} 18. Bxe5 {[%clk 0:01:06]}  Qxe5 {[%clk 0:01:42]} 19. f4 {[%clk 0:00:48]}  Qg7 {[%clk 0:01:41]} 20. Nc5 {[%clk 0:00:45]}  Bf5 {[%clk 0:01:25]} 21. g4 {[%clk 0:00:44]}  hxg4 {[%clk 0:01:23]} 22. h5 {[%clk 0:00:44]}  Qc3 {[%clk 0:01:11]} 23. Qxc3 {[%clk 0:00:42]}  bxc3 {[%clk 0:01:11]} 24. hxg6 {[%clk 0:00:42]}  fxg6 {[%clk 0:01:09]} 25. Rhg1 {[%clk 0:00:38]}  Nf6 {[%clk 0:01:08]} 26. Rg3 {[%clk 0:00:35]}  Kg7 {[%clk 0:01:07]} 27. Rxc3 {[%clk 0:00:19]}  Rfd8 {[%clk 0:01:02]} 28. Rxd8 {[%clk 0:00:17]}  Rxd8 {[%clk 0:01:01]} 29. Rg3 {[%clk 0:00:17]}  Rd5 {[%clk 0:00:56]} 30. b4 {[%clk 0:00:16]}  a5 {[%clk 0:00:53]} 31. a3 {[%clk 0:00:16]}  axb4 {[%clk 0:00:53]} 32. axb4 {[%clk 0:00:17]}  Rd4 {[%clk 0:00:53]} 33. Nd3 {[%clk 0:00:12]}  Bxd3 {[%clk 0:00:52]} 34. Bxd3 {[%clk 0:00:12]}  Rxb4+ {[%clk 0:00:52]} 35. Kc1 {[%clk 0:00:13]}  Rxf4 {[%clk 0:00:49]} 36. Kd2 {[%clk 0:00:13]}  e5 {[%clk 0:00:47]} 37. Ke3 {[%clk 0:00:12]}  Nd5+ {[%clk 0:00:45]} 38. Kd2 {[%clk 0:00:10]}  Kf6 {[%clk 0:00:38]} 39. c4 {[%clk 0:00:10]}  Nb4 {[%clk 0:00:37]} 40. Be2 {[%clk 0:00:08]}  Kg5 {[%clk 0:00:35]} 41. Ke3 {[%clk 0:00:06]}  Nc2+ {[%clk 0:00:34]} 42. Kd2 {[%clk 0:00:06]}  Nd4 {[%clk 0:00:34]} 43. Bd1 {[%clk 0:00:05]}  Nf3+ {[%clk 0:00:33]} 44. Ke3 {[%clk 0:00:03]}  c5 {[%clk 0:00:28]} 45. Be2 {[%clk 0:00:03]}  Nd4 {[%clk 0:00:24]} 46. Bd1 {[%clk 0:00:02]}  Ne6 {[%clk 0:00:22]} 47. Be2 {[%clk 0:00:00]}  Rd4 {[%clk 0:00:22]} 0-1


[Site "https://www.chess.com"]